fUSD/lending_fUSD_20240920
["ID","MTS","AMOUNT","RATE_DAILY","PERIOD"]
[338642812,1726839822894,152.86,0.000149,31]
[338642813,1726839822957,152.86,0.000149,31]
[338642814,1726839823006,152.86,0.000149,31]
[338642815,1726839823904,150.0,0.00023,120]
[338642817,1726839837098,171.24,0.00011861,2]
[338642818,1726839840871,200.0,0.00011861,2]
[338642819,1726839852633,250.0,0.00011861,2]
[338642820,1726839853340,5000.0,1.201e-05,2]
[338642821,1726839860492,250.0,0.00011867,2]
[338642822,1726839872359,5000.0,1.214e-05,2]
[338642823,1726839890691,167.21,0.00011861,2]
[338642824,1726839895535,383.65,0.00011863,2]
[338642825,1726839899032,5000.0,1.3e-05,2]
[338642826,1726839903463,5000.0,1.4e-05,2]
[338642827,1726839904835,150.0,0.00011688,2]
[338642828,1726839907680,150.0,0.00011688,2]
[338642829,1726839915376,150.0,0.00011688,2]
[338642830,1726840011906,150.0,0.00022986,120]
[338642831,1726840023255,350.12,9.93e-05,2]
[338642832,1726840124642,150.0,0.00023,120]
[338642833,1726840136506,200.0,0.00011835,2]
[338642834,1726840185443,1050.0,0.00011,2]
[338642836,1726840216928,2000.0,0.00012,2]
[338642841,1726840231375,-150.0,0.00012121,2]
[338642843,1726840231385,-169.61,0.00012191,2]
[338642844,1726840231394,-350.12,0.00012194,2]
[338642845,1726840231404,-250.0,0.00012316,2]
[338642847,1726840231414,-7697.5419,0.00012413,2]
[338642848,1726840231424,-5000.0,0.000125,2]
[338642849,1726840231433,-404.55,0.00012513,2]
[338642851,1726840231443,-72.9502305,0.00012553,2]
[338642852,1726840231549,-77.0497695,0.00012553,2]
[338642853,1726840231559,-5082.3175818,0.000127,2]
[338642854,1726840231568,-500.0,0.00012715,2]
[338642855,1726840231578,-500.0,0.00012724,2]
[338642856,1726840231587,-500.0,0.00012733,2]
[338642857,1726840231596,-166.25,0.00012733,2]
[338642858,1726840231606,-500.0,0.00012742,2]
[338642859,1726840231616,-9999.99,0.00012742,2]
[338642860,1726840231625,-130.98336887,0.00012742,2]
[338642861,1726840231637,-373.53663113,0.00012742,2]
[338642862,1726840231646,-83.48101793,0.00012742,2]
[338642863,1726840231657,-10600.90993565,0.00012742,2]
[338642864,1726840231668,-348.26422483,0.00012742,2]
[338642867,1726840231680,-14731.51482159,0.00012742,2]
[338642869,1726840231690,-500.0,0.0001275,2]
[338642870,1726840231699,-1232.43,0.0001275,2]
[338642872,1726840231709,-500.0,0.00012759,2]
[338642874,1726840231718,-500.0,0.00012768,2]
[338642876,1726840231727,-500.0,0.00012777,2]
[338642877,1726840231737,-499.99,0.00012777,2]
[338642879,1726840231746,-2537.17,0.00012777,2]
[338642880,1726840231756,-500.0,0.00012786,2]
[338642881,1726840231765,-3425.85,0.00012793,2]
[338642882,1726840231775,-500.0,0.00012794,2]
[338642883,1726840231785,-150.0,0.00012799,2]
[338642884,1726840231794,-150.0,0.000128,2]
[338642885,1726840231806,-1072.42,0.000128,2]
[338642887,1726840231815,-150.0,0.000128,2]
[338642888,1726840231825,-150.0,0.000128,2]
[338642889,1726840231834,-533.27,0.000128,2]
[338642890,1726840231843,-150.0,0.000128,2]
[338642891,1726840231853,-356.93,0.000128,2]
[338642892,1726840231862,-150.0,0.000128,2]
[338642893,1726840231871,-811.8595593,0.000128,2]
[338642894,1726840231881,-491.29,0.000128,2]
[338642895,1726840231890,-500.0,0.00012803,2]
[338642896,1726840231900,-811.85955926,0.00012811,2]
[338642897,1726840231909,-500.0,0.00012812,2]
[338642898,1726840231920,-500.0,0.00012821,2]
[338642899,1726840231929,-811.85955926,0.00012822,2]
[338642900,1726840231939,-500.0,0.0001283,2]
[338642901,1726840231948,-811.85955926,0.00012833,2]
[338642902,1726840231958,-500.0,0.00012838,2]
[338642903,1726840231967,-811.85955926,0.00012844,2]
[338642904,1726840231976,-500.0,0.00012847,2]
[338642905,1726840231986,-811.85955926,0.00012856,2]
[338642906,1726840231996,-500.0,0.00012856,2]
[338642907,1726840232005,-177.51,0.00012863,2]
[338642908,1726840232015,-500.0,0.00012865,2]
[338642909,1726840232025,-811.85955926,0.00012867,2]
[338642910,1726840232034,-1359.639,0.00012872,2]
[338642911,1726840232044,-23830.31703739,0.00012872,2]
[338642912,1726840232059,-177.51,0.00012872,2]
[338642913,1726840232069,-500.0,0.00012874,2]
[338642914,1726840232078,-811.85955926,0.00012878,2]
[338642915,1726840232088,-500.0,0.00012882,2]
[338642916,1726840232097,-811.85955926,0.00012889,2]
[338642917,1726840232107,-177.51,0.0001289,2]
[338642918,1726840232116,-500.0,0.00012891,2]
[338642919,1726840232126,-5800.0,0.00012891,2]
[338642920,1726840232137,-500.0,0.00012896,2]
[338642921,1726840232147,-200.0,0.00012896,2]
[338642922,1726840232156,-685.73045971,0.000129,2]
[338642923,1726840232165,-35000.0,0.000129,2]
[338642924,1726840232175,-500.0,0.000129,2]
[338642925,1726840232184,-431.93,0.000129,2]
[338642926,1726840232193,-302.91,0.000129,2]
[338642927,1726840232203,-300.51,0.000129,2]
[338642928,1726840232212,-178.69,0.000129,2]
[338642929,1726840232222,-357.98,0.000129,2]
[338642930,1726840232232,-433.74,0.000129,2]
[338642931,1726840232243,-752.99,0.000129,2]
[338642932,1726840232252,-154.68,0.000129,2]
[338642933,1726840232262,-307.98,0.000129,2]
[338642934,1726840232271,-201.34185824,0.000129,2]
[338642935,1726840232281,-150.0,0.000129,2]
[338642936,1726840232291,-357.98,0.000129,2]
[338642937,1726840232303,-150.0,0.000129,2]
[338642938,1726840232315,-428.14,0.000129,2]
[338642939,1726840232324,-150.0,0.000129,2]
[338642940,1726840232333,-357.98,0.000129,2]
[338642941,1726840232343,-150.0,0.000129,2]
[338642942,1726840232352,-428.14,0.000129,2]
[338642943,1726840232362,-150.0,0.000129,2]
[338642944,1726840232372,-428.14,0.000129,2]
[338642945,1726840232381,-162.22,0.000129,2]
[338642946,1726840232390,-150.0,0.000129,2]
[338642947,1726840232400,-35000.0,0.000129,2]
[338642948,1726840232410,-428.14,0.000129,2]
[338642949,1726840232420,-150.0,0.000129,2]
[338642950,1726840232430,-426.84,0.000129,2]
[338642951,1726840232440,-17954.71739284,0.000129,2]
[338642952,1726840232449,-5800.0,0.000129,2]
[338642953,1726840232459,-1418.82681297,0.000129,2]
[338642954,1726840232468,-405.73606374,0.000129,2]
[338642955,1726840232478,-514.17786847,0.000129,2]
[338642956,1726840232488,-164.67766966,0.000129,2]
[338642957,1726840232498,-811.85955926,0.000129,2]
[338642958,1726840232508,-157.15454422,0.000129,2]
[338642959,1726840232518,-460.326,0.00012924,2]
[338642960,1726840232528,-150.0,0.00012946,2]
[338642961,1726840232537,-252.866,0.00012946,2]
[338642962,1726840232546,-14863.45,0.00012958,2]
[338642963,1726840232565,-403.95302618,0.00012973,2]
[338642964,1726840232575,-217.34399043,0.00012986,2]
[338642965,1726840232584,-179.1312418,0.00012986,2]
[338642966,1726840232593,-261.94129289,0.00012986,2]
[338642967,1726840232603,-153.19,0.0001299,2]
[338642968,1726840232613,-153.19,0.0001299,2]
[338642969,1726840232622,-158.6046869,0.00012996,2]
[338642970,1726840232631,-1280.6753308,0.00012996,2]
[338642971,1726840232641,-9179.3720714,0.00012996,2]
[338642972,1726840232652,-500.0,0.00012999,2]
[338642973,1726840232662,-431.99324153,0.00012999,2]
[338642974,1726840232671,-155.82709448,0.00012999,2]
[338642975,1726840232681,-150.0,0.00012999,2]
[338642976,1726840232690,-14828.02,0.00013,2]
[338642977,1726840232700,-653.0,0.00013,2]
[338642978,1726840232709,-135993.99641278,0.00013,2]
[338642979,1726840237464,-237798.71156208,0.00013,2]
[338642980,1726840237474,-592.0,0.00013,2]
[338642981,1726840237484,-201269.09683017,0.00013,2]
[338642982,1726840237494,-1700.80946594,0.00013,2]
[338642983,1726840237503,-513125.73887613,0.00013,2]
[338642993,1726840237833,-496.82884039,0.00013,2]
[338642995,1726840237844,-996.5155168,0.00013,2]
[338642998,1726840237861,-7604.1926157,0.00013,2]
[338643137,1726840239448,-83753.99677017,0.00013,2]
[338643138,1726840239460,-313927.68083181,0.00013,2]
[338643139,1726840239470,-14067.81142695,0.00013,2]
[338643140,1726840239482,-389.44550813,0.00013,2]
[338643141,1726840239543,-29357.46720003,0.00013,2]
[338643142,1726840239642,-6905.52589726,0.00013,2]
[338643143,1726840239666,-119767.69126394,0.00013,2]
[338643668,1726840245455,-31566.63569718,0.00013,2]
[338643669,1726840245548,-3771.28752,0.00013,2]
[338643670,1726840245640,-2015.529557,0.00013,2]
[338643685,1726840423324,150.0,0.00023,120]
[338643686,1726840426719,152.89,0.000149,31]
[338643687,1726840426778,152.89,0.000149,31]
[338643688,1726840426838,152.89,0.000149,31]
[338643689,1726840426902,152.89,0.000149,31]
[338643690,1726840426968,152.89,0.000149,31]
[338643691,1726840427026,152.89,0.000149,31]
[338643692,1726840427084,152.89,0.000149,31]
[338643693,1726840483268,546.83,0.00011867,2]
[338643694,1726840498944,500.0,0.00022999,120]
[338643695,1726840499204,455.77,0.00022999,120]
[338643696,1726840580792,150.0,0.00022986,120]
[338643697,1726840597931,328.64,0.00010008,2]
[338643698,1726840726691,150.0,0.00023,120]
[338643712,1726840920034,250.0,0.00011799,2]
[338643713,1726840957214,374.67,0.00011801,2]
[338643714,1726840976899,250.0,0.00011784,2]
[338643715,1726840985478,1000.0,0.00011827,2]
[338643716,1726840997160,153.41,0.00011847,2]
[338643717,1726841024238,150.0,0.00023,120]
[338643718,1726841029265,152.93,0.000149,31]
[338643719,1726841029333,152.93,0.000149,31]
[338643720,1726841029403,152.93,0.000149,31]
[338643721,1726841029444,152.93,0.000149,31]
[338643722,1726841029505,152.93,0.000149,31]
[338643723,1726841029568,152.93,0.000149,31]
[338643724,1726841029627,152.93,0.000149,31]
[338643725,1726841089396,500.0,0.00022999,120]
[338643726,1726841089675,468.42521219,0.00022999,120]
[338643727,1726841160497,323.64,0.00011749,2]
[338643728,1726841265295,156.18,0.00010959,2]
[338643729,1726841276848,5006.05644324,0.00012,2]
[338643730,1726841313676,150.0,0.00022986,120]
[338643731,1726841315427,500.0,0.00022999,120]
[338643732,1726841315698,497.90020001,0.00022999,120]
[338643733,1726841322723,150.0,0.00023,120]
[338643734,1726841349039,50000.0,0.00022,60]
[338643736,1726841393293,312.2,9.803e-05,2]
[338643743,1726841431567,-227.84,0.00012059,2]
[338643744,1726841431578,-312.2,0.00012067,2]
[338643745,1726841431588,-35.06458265,0.0001231,2]
[338643746,1726841431603,-136.38541735,0.0001231,2]
[338643747,1726841431612,-500.0,0.00012486,2]
[338643748,1726841431622,-500.0,0.00012495,2]
[338643749,1726841431633,-500.0,0.00012504,2]
[338643750,1726841431642,-500.0,0.00012513,2]
[338643751,1726841431652,-500.0,0.00012522,2]
[338643752,1726841431661,-500.0,0.0001253,2]
[338643753,1726841431671,-500.0,0.00012539,2]
[338643754,1726841431681,-500.0,0.00012548,2]
[338643755,1726841431691,-500.0,0.00012557,2]
[338643756,1726841431700,-1688.54,0.00012557,2]
[338643757,1726841431710,-300.0,0.00012565,2]
[338643758,1726841431720,-500.0,0.00012566,2]
[338643759,1726841431730,-1024.59,0.00012566,2]
[338643760,1726841431740,-500.0,0.00012574,2]
[338643761,1726841431749,-500.0,0.00012583,2]
[338643762,1726841431758,-500.0,0.00012592,2]
[338643763,1726841431768,-500.0,0.00012601,2]
[338643764,1726841431777,-500.0,0.0001261,2]
[338643765,1726841431787,-500.0,0.00012618,2]
[338643766,1726841431796,-500.0,0.00012627,2]
[338643767,1726841431805,-500.0,0.00012636,2]
[338643768,1726841431815,-500.0,0.00012645,2]
[338643769,1726841431824,-500.0,0.00012654,2]
[338643770,1726841431834,-500.0,0.00012662,2]
[338643771,1726841431843,-500.0,0.00012671,2]
[338643772,1726841431853,-500.0,0.0001268,2]
[338643773,1726841431862,-150.0,0.0001268,2]
[338643793,1726841432089,-500.0,0.00012689,2]
[338643794,1726841432099,-499.99,0.00012689,2]
[338643795,1726841432109,-500.0,0.00012698,2]
[338643796,1726841432119,-500.0,0.00012706,2]
[338643797,1726841432128,-357.3638,0.000128,2]
[338643798,1726841432137,-150.0,0.000128,2]
[338643799,1726841432147,-150.0,0.000128,2]
[338643800,1726841432157,-1146.0,0.00012846,2]
[338643801,1726841432170,-150.0,0.00012846,2]
[338643802,1726841432179,-11778.87987303,0.0001287,2]
[338643803,1726841432189,-500.0,0.00012896,2]
[338643804,1726841432199,-200.0,0.00012896,2]
[338643805,1726841432208,-150.0,0.000129,2]
[338643806,1726841432218,-150.0,0.000129,2]
[338643807,1726841432228,-272.13,0.000129,2]
[338643808,1726841432237,-150.0,0.000129,2]
[338643809,1726841432247,-201.34185824,0.000129,2]
[338643810,1726841432257,-308.94,0.000129,2]
[338643811,1726841432266,-1014.42,0.000129,2]
[338643812,1726841432275,-5250.30355931,0.000129,2]
[338643813,1726841432288,-3410.50407077,0.000129,2]
[338643814,1726841432304,-1261.77257188,0.000129,2]
[338643815,1726841432315,-308.06435349,0.000129,2]
[338643816,1726841432330,-2526.3241133,0.000129,2]
[338643817,1726841432340,-329.50705356,0.000129,2]
[338643818,1726841432349,-440.366,0.00012946,2]
[338643819,1726841432359,-274.764,0.00012946,2]
[338643820,1726841432369,-10101.2231615,0.00012996,2]
[338643821,1726841432379,-1413.5627259,0.00012996,2]
[338643822,1726841432388,-1171.1635561,0.00012996,2]
[338643823,1726841432398,-704.0,0.00013,2]
[338643824,1726841432408,-29345.21729594,0.00013,2]
[338643825,1726841432419,-286140.93338366,0.00013,2]
[338643826,1726841432430,-37592.21185288,0.00013,2]
[338643827,1726841432442,-1284.40976051,0.00013,2]
[338643828,1726841432453,-405.84115355,0.00013,2]
[338643829,1726841432466,-118890.05799836,0.00013,2]
[338643840,1726841437681,-947.52847,0.00013,2]
[338643841,1726841437703,-634.7042152,0.00013,2]
[338643842,1726841437728,-619736.83554347,0.00013,2]
[338643843,1726841437738,-142842.61267846,0.00013,2]
[338643844,1726841437750,-1000.0,0.00013,2]
[338643845,1726841437760,-190906.90851239,0.00013,2]
[338643846,1726841437900,-313.51609491,0.00013,2]
[338643847,1726841437912,-21242.7323858,0.00013,2]
[338644007,1726841439766,-632.0,0.00013,2]
[338644009,1726841439776,-2948.724372,0.00013,2]
[338644011,1726841439792,-141788.03169756,0.00013,2]
[338644016,1726841439824,-60335.12837171,0.00013,2]
[338644018,1726841439836,-12590.60799998,0.00013,2]
[338644019,1726841439847,-451.31098158,0.00013,2]
[338644020,1726841439858,-866.06808751,0.00013,2]
[338644021,1726841439869,-2836.6413748,0.00013,2]
[338644022,1726841439881,-12993.09164618,0.00013,2]
[338644023,1726841439892,-46513.77355837,0.00013,2]
[338644024,1726841439960,-6757.96750055,0.00013,2]
[338644025,1726841439972,-89099.0984953,0.00013,2]
[338644247,1726841442687,-701.666667,0.0001287,2]
[338644250,1726841442699,-2076.93381065,0.0001287,2]
[338644252,1726841442711,-674.74381166,0.0001287,2]
[338644255,1726841442724,-660.19,0.0001287,2]
[338644257,1726841442736,-2204.45423647,0.0001287,2]
[338644259,1726841442747,-1269.9797806,0.0001287,2]
[338644261,1726841442759,-1175.26064,0.0001287,2]
[338644262,1726841442771,-3015.65092665,0.0001287,2]
[338644264,1726841442780,-2659.19404977,0.00013,2]
[338644266,1726841442794,-1130.77964873,0.00013,2]
[338644268,1726841442806,-489.29187735,0.00013,2]
[338644271,1726841442817,-15843.63179293,0.00013,2]
[338644272,1726841442828,-2115.73344882,0.00013,2]
[338644274,1726841442840,-512593.43633142,0.00013,2]
[338644276,1726841442849,-1421759.37510378,0.00013,2]
[338644287,1726841442943,-673.54936031,0.00013,2]
[338644288,1726841442955,-3075.72210345,0.00013,2]
[338644289,1726841442966,-584.94556398,0.00013,2]
[338644290,1726841442978,-961.14525012,0.00013,2]
[338644291,1726841442990,-5150.83994801,0.00013,2]
[338644292,1726841443001,-2125.86043622,0.00013,2]
[338644293,1726841443014,-835.04991627,0.00013,2]
[338644294,1726841443026,-512.00786555,0.00013,2]
[338644295,1726841443039,-3544.2752695,0.00013,2]
[338644296,1726841443051,-3799.999993,0.00013,2]
[338644297,1726841443062,-2743.43994,0.00013,2]
[338644298,1726841443074,-22212.84406301,0.00013,2]
[338644299,1726841443087,-1006.62630079,0.00013,2]
[338644300,1726841443099,-352.72799642,0.00013,2]
[338644301,1726841443110,-513.18500005,0.00013,2]
[338644302,1726841443123,-695.84866301,0.00013,2]
[338644303,1726841443134,-5403.05417497,0.00013,2]
[338644304,1726841443145,-135729.98338126,0.00013,2]
[338644550,1726841445571,-6305.58600001,0.00013,2]
[338644553,1726841445583,-5990.73861914,0.00013,2]
[338644555,1726841445599,-315.79999999,0.00013,2]
[338644571,1726841445747,-664.3539998,0.00013,2]
[338644573,1726841445758,-1650.24238056,0.00013,2]
[338644583,1726841445846,-3025.4746263,0.00013,2]
[338644585,1726841445857,-336.66698667,0.00013,2]
[338645754,1726841593557,310.0,0.000131,120]
[338645755,1726841622728,150.0,0.00023,120]
[338645756,1726841630991,153.01,0.000149,31]
[338645757,1726841631061,153.01,0.000149,31]
[338645758,1726841631110,153.01,0.000149,31]
[338645759,1726841631182,153.01,0.000149,31]
[338645760,1726841631240,153.01,0.000149,31]
[338645761,1726841631297,153.01,0.000149,31]
[338645762,1726841631360,153.01,0.000149,31]
[338645763,1726841836435,189.34,0.00010959,2]
[338645764,1726841883288,221.08457551,0.00011968,2]
[338645765,1726841888273,221.0845755,0.00011984,2]
[338645766,1726841893346,221.0845755,0.00011999,2]
[338645767,1726841923198,150.0,0.00023,120]
[338645768,1726841939234,50000.0,0.00022,60]
[338645769,1726841989233,1050.0,0.00011,2]
[338645770,1726842136313,307.76,0.00010052,2]
[338645771,1726842156072,250.0,0.00011937,2]
[338645772,1726842173820,250.0,0.0001197,2]
[338645773,1726842182539,150.0,0.00014877,30]
[338645774,1726842221429,156.503556,0.00023,120]
[338645775,1726842267684,500.0,0.00022999,120]
[338645776,1726842267982,500.0,0.00022999,120]
[338645777,1726842268259,500.0,0.00022999,120]
[338645778,1726842268530,500.0,0.00022999,120]
[338645779,1726842268822,500.0,0.00022999,120]
[338645780,1726842269099,500.0,0.00022999,120]
[338645781,1726842269373,500.0,0.00022999,120]
[338645782,1726842269690,500.0,0.00022999,120]
[338645783,1726842270002,500.0,0.00022999,120]
[338645784,1726842270294,500.0,0.00022999,120]
[338645785,1726842270567,500.0,0.00022999,120]
[338645786,1726842270966,500.0,0.00022999,120]
[338645787,1726842271226,500.0,0.00022999,120]
[338645788,1726842271512,500.0,0.00022999,120]
[338645789,1726842271824,500.0,0.00022999,120]
[338645790,1726842272117,500.0,0.00022999,120]
[338645791,1726842272379,500.0,0.00022999,120]
[338645792,1726842272669,500.0,0.00022999,120]
[338645793,1726842272945,500.0,0.00022999,120]
[338645794,1726842273231,500.0,0.00022999,120]
[338645795,1726842273535,182.7739692,0.00022999,120]
[338645796,1726842302907,150.0,0.00011688,2]
[338645798,1726842476787,200.0,0.00011954,2]
[338645799,1726842479267,5578.64183989,0.00012,2]
[338645805,1726842524265,150.0,0.00023,120]
[338645820,1726842631899,-182.27,0.00012003,2]
[338645821,1726842631909,-1000.0,0.00012003,2]
[338645822,1726842631919,-250.0,0.00012003,2]
[338645823,1726842631928,-166.15,0.0001205,2]
[338645824,1726842631938,-151.83,0.00012056,2]
[338645825,1726842631947,-208.27839709,0.00012068,2]
[338645826,1726842631959,-70.47160291,0.00012068,2]
[338645827,1726842631969,-307.76,0.00012316,2]
[338645828,1726842631978,-500.0,0.00012478,2]
[338645829,1726842631988,-499.99,0.00012478,2]
[338645830,1726842631997,-300.0,0.0001248,2]
[338645831,1726842632006,-168.22,0.00012481,2]
[338645832,1726842632015,-574.65739783,0.00012481,2]
[338645833,1726842632053,-1221.12260217,0.00012481,2]
[338645834,1726842632062,-589.03,0.00012481,2]
[338645835,1726842632072,-189.84739783,0.0001283,2]
[338645836,1726842632083,-310.15260217,0.0001283,2]
[338645837,1726842632092,-500.0,0.00012838,2]
[338645838,1726842632101,-389.17448694,0.00012847,2]
[338645839,1726842632113,-110.82551306,0.00012847,2]
[338645840,1726842632123,-500.0,0.00012856,2]
[338645841,1726842632132,-500.0,0.00012865,2]
[338645842,1726842632141,-1995.50260244,0.0001287,2]
[338645846,1726842638083,-1329.33793983,0.0001287,2]
[338645847,1726842638094,-8454.03933076,0.0001287,2]
[338645848,1726842638103,-500.0,0.00012874,2]
[338645849,1726842638113,-500.0,0.00012882,2]
[338645850,1726842638122,-500.0,0.00012891,2]
[338645851,1726842638131,-500.0,0.00012896,2]
[338645852,1726842638140,-200.0,0.00012896,2]
[338645853,1726842638149,-150.0,0.00012899,2]
[338645854,1726842638158,-237.7104,0.000129,2]
[338645855,1726842638168,-1189.1036,0.000129,2]
[338645856,1726842638180,-150.0,0.000129,2]
[338645857,1726842638190,-150.0,0.000129,2]
[338645858,1726842638199,-150.0,0.000129,2]
[338645859,1726842638210,-422.74,0.000129,2]
[338645860,1726842638219,-533.47,0.000129,2]
[338645861,1726842638228,-753.33,0.000129,2]
[338645862,1726842638237,-357.98,0.000129,2]
[338645863,1726842638247,-428.14,0.000129,2]
[338645864,1726842638255,-533.47,0.000129,2]
[338645865,1726842638266,-150.0,0.000129,2]
[338645866,1726842638275,-150.0,0.000129,2]
[338645867,1726842638284,-422.74,0.000129,2]
[338645868,1726842638293,-428.14,0.000129,2]
[338645869,1726842638302,-753.33,0.000129,2]
[338645870,1726842638311,-300.0,0.000129,2]
[338645871,1726842638320,-357.98,0.000129,2]
[338645873,1726842638329,-357.98,0.000129,2]
[338645876,1726842638342,-422.74,0.000129,2]
[338645877,1726842638351,-428.14,0.000129,2]
[338645880,1726842638361,-150.0,0.000129,2]
[338645881,1726842638370,-753.33,0.000129,2]
[338645883,1726842638379,-150.0,0.000129,2]
[338645885,1726842638388,-753.33,0.000129,2]
[338645887,1726842638398,-428.14,0.000129,2]
[338645889,1726842638407,-150.0,0.000129,2]
[338645891,1726842638416,-91.68716839,0.000129,2]
[338645895,1726842638439,-331.05283161,0.000129,2]
[338645897,1726842638448,-753.33,0.000129,2]
[338645898,1726842638458,-428.14,0.000129,2]
[338645901,1726842638469,-422.5,0.000129,2]
[338645903,1726842638479,-150.0,0.000129,2]
[338645905,1726842638488,-208.6537509,0.000129,2]
[338645907,1726842638500,-219.4862491,0.000129,2]
[338645909,1726842638509,-753.33,0.000129,2]
[338645911,1726842638518,-150.0,0.000129,2]
[338645913,1726842638527,-753.33,0.000129,2]
[338645915,1726842638537,-150.0,0.000129,2]
[338645917,1726842638547,-428.14,0.000129,2]
[338645919,1726842638556,-428.14,0.000129,2]
[338645921,1726842638565,-150.0,0.000129,2]
[338645923,1726842638574,-500.0,0.000129,2]
[338645925,1726842638583,-387.36351473,0.000129,2]
[338645926,1726842638593,-329.50705356,0.000129,2]
[338645928,1726842638602,-150.0,0.00012946,2]
[338645930,1726842638611,-1280.1947817,0.00012996,2]
[338645932,1726842638621,-1274.7573838,0.00012996,2]
[338645934,1726842638630,-352.292,0.00012999,2]
[338645936,1726842638639,-2398.98490248,0.00012999,2]
[338645938,1726842638648,-566.0,0.00013,2]
[338645940,1726842638658,-21358.06419113,0.00013,2]
[338645943,1726842638670,-6547.3612465,0.00013,2]
[338645945,1726842638683,-14608.79675,0.00013,2]
[338645947,1726842638696,-90228.85315217,0.00013,2]
[338645949,1726842638705,-1197959.60194885,0.00013,2]
[338646055,1726842639840,-379.33832296,0.00013,2]
[338646056,1726842640099,-329.1028,0.00013,2]
[338646057,1726842640111,-1189.103628,0.00013,2]
[338646058,1726842640123,-37662.49268899,0.00013,2]
[338646059,1726842640134,-629.48015,0.00013,2]
[338646060,1726842640146,-1220.18467513,0.00013,2]
[338646061,1726842640158,-9800.12754767,0.00013,2]
[338646326,1726842642923,-928.57450665,0.00013,2]
[338646329,1726842642935,-595.0,0.00013,2]
[338646517,1726842645782,-1258.0949036,0.00013,2]
[338646535,1726842645872,-14771.82759375,0.00013,2]
[338646537,1726842645883,-12578.79236999,0.00013,2]
[338646560,1726842646099,-6272.2,0.00013,2]
[338646727,1726842686494,150.986,0.00023,120]
[338646728,1726842778147,285.78,0.00010153,2]
[338646729,1726842785720,500.0,0.00022999,120]
[338646730,1726842785990,500.0,0.00022999,120]
[338646731,1726842786273,500.0,0.00022999,120]
[338646732,1726842786549,500.0,0.00022999,120]
[338646733,1726842786819,500.0,0.00022999,120]
[338646734,1726842787120,500.0,0.00022999,120]
[338646735,1726842787412,500.0,0.00022999,120]
[338646736,1726842787698,282.46,0.00022999,120]
[338646737,1726842791368,500.0,0.00022999,120]
[338646738,1726842791656,500.0,0.00022999,120]
[338646739,1726842791930,500.0,0.00022999,120]
[338646740,1726842792279,500.0,0.00022999,120]
[338646741,1726842792527,500.0,0.00022999,120]
[338646742,1726842792907,500.0,0.00022999,120]
[338646743,1726842793179,500.0,0.00022999,120]
[338646744,1726842793469,359.99,0.00022999,120]
[338646745,1726842795731,500.29315011,0.00022999,120]
[338646746,1726842797861,600.81,0.00022999,120]